[Event "GrandPrix_29.05"]
[Site "Chess.com"]
[Date "2020.05.29"]
[Round "1"]
[White "BogdanBelyakov89"]
[Black "Kobalia"]
[Result "1/2-1/2"]
[WhiteElo "2314"]
[BlackElo "2134"]
[TimeControl "600+2"]
[EndTime "9:19:59 PDT"]
[Termination "Game drawn by repetition"]

1. e4 {[%clk 0:08:49]} 1... c5 {[%clk 0:09:53.8]} 2. c3 {[%clk 0:08:48.8]} 2...
Nf6 {[%clk 0:09:44.2]} 3. e5 {[%clk 0:08:45.9]} 3... Nd5 {[%clk 0:09:42]} 4. Nf3
{[%clk 0:08:45.4]} 4... e6 {[%clk 0:09:42.2]} 5. d4 {[%clk 0:08:46.2]} 5... cxd4
{[%clk 0:09:42.6]} 6. cxd4 {[%clk 0:08:48.1]} 6... d6 {[%clk 0:09:43.5]} 7. Bc4
{[%clk 0:08:38.8]} 7... Nb6 {[%clk 0:09:41.9]} 8. Bd3 {[%clk 0:08:36.5]} 8...
Nc6 {[%clk 0:09:36.1]} 9. a3 {[%clk 0:08:03]} 9... dxe5 {[%clk 0:09:19.7]} 10.
dxe5 {[%clk 0:08:01.2]} 10... Nd7 {[%clk 0:09:20.7]} 11. Bf4 {[%clk 0:05:41.2]}
11... Nc5 {[%clk 0:09:19.8]} 12. Bc2 {[%clk 0:05:27.9]} 12... Qxd1+ {[%clk
0:09:18.8]} 13. Kxd1 {[%clk 0:05:29.8]} 13... a5 {[%clk 0:09:15.9]} 14. Nbd2
{[%clk 0:05:27.3]} 14... Be7 {[%clk 0:09:10.7]} 15. Ne4 {[%clk 0:05:22.6]} 15...
O-O {[%clk 0:09:09]} 16. Rc1 {[%clk 0:05:18.2]} 16... h6 {[%clk 0:05:30.3]} 17.
h4 {[%clk 0:04:33.2]} 17... a4 {[%clk 0:04:42.4]} 18. Ke2 {[%clk 0:04:09.6]}
18... b6 {[%clk 0:04:38.4]} 19. Nxc5 {[%clk 0:04:09.3]} 19... Bxc5 {[%clk
0:04:36]} 20. Rhd1 {[%clk 0:03:55.1]} 20... Ba6+ {[%clk 0:04:30.9]} 21. Bd3
{[%clk 0:03:43.6]} 21... Bxd3+ {[%clk 0:04:22.5]} 22. Rxd3 {[%clk 0:03:45.5]}
22... Ne7 {[%clk 0:04:23.4]} 23. Be3 {[%clk 0:03:29]} 23... Nd5 {[%clk
0:04:21.8]} 24. g3 {[%clk 0:03:16.5]} 24... Bxe3 {[%clk 0:04:09.9]} 25. fxe3
{[%clk 0:03:18.4]} 25... Rfc8 {[%clk 0:04:10]} 26. Rdd1 {[%clk 0:03:07.8]} 26...
Kf8 {[%clk 0:04:00.3]} 27. e4 {[%clk 0:02:42.7]} 27... Ne7 {[%clk 0:03:58.3]}
28. Nd4 {[%clk 0:02:39]} 28... Rc5 {[%clk 0:03:47.8]} 29. Nf3 {[%clk 0:02:29.7]}
29... Ke8 {[%clk 0:03:37.3]} 30. Rc3 {[%clk 0:02:12.6]} 30... Rxc3 {[%clk
0:03:32.5]} 31. bxc3 {[%clk 0:02:13.3]} 31... Rc8 {[%clk 0:03:33.5]} 32. Rc1
{[%clk 0:02:09.3]} 32... Nc6 {[%clk 0:03:30.7]} 33. Rb1 {[%clk 0:02:03.9]} 33...
Na5 {[%clk 0:03:13.5]} 34. Rxb6 {[%clk 0:01:59.9]} 34... Rxc3 {[%clk 0:03:14.2]}
35. Ra6 {[%clk 0:01:57.4]} 35... Nc4 {[%clk 0:02:15.7]} 36. Rxa4 {[%clk
0:01:52.6]} 36... Nxa3 {[%clk 0:02:15.9]} 37. Ra8+ {[%clk 0:01:50.3]} 37... Ke7
{[%clk 0:02:11.9]} 38. Ra7+ {[%clk 0:01:51.2]} 38... Ke8 {[%clk 0:02:12.8]} 39.
Ra8+ {[%clk 0:01:50.6]} 39... Ke7 {[%clk 0:02:13.4]} 40. Ra7+ {[%clk 0:01:52.5]}
40... Ke8 {[%clk 0:02:14.5]} 41. Ra8+ {[%clk 0:01:50.4]} 1/2-1/2

[Event "GrandPrix_29.05"]
[Site "Chess.com"]
[Date "2020.05.29"]
[Round "1"]
[White "switlave"]
[Black "Nuvas"]
[Result "0-1"]
[WhiteElo "1394"]
[BlackElo "2243"]
[TimeControl "600+2"]
[EndTime "9:20:01 PDT"]
[Termination "Nuvas won by resignation"]

1. d4 {[%clk 0:09:59.3]} 1... d5 {[%clk 0:10:00.9]} 2. Bf4 {[%clk 0:10:00.6]}
2... Nf6 {[%clk 0:10:01.1]} 3. e3 {[%clk 0:10:00.6]} 3... e6 {[%clk 0:10:01.2]}
4. Nd2 {[%clk 0:09:52.2]} 4... Bd6 {[%clk 0:09:47.8]} 5. Ngf3 {[%clk 0:09:37.9]}
5... O-O {[%clk 0:09:39.6]} 6. Bd3 {[%clk 0:08:54.7]} 6... Bxf4 {[%clk
0:09:37.5]} 7. exf4 {[%clk 0:08:55.3]} 7... b6 {[%clk 0:09:38.9]} 8. Qe2 {[%clk
0:08:48.1]} 8... a5 {[%clk 0:09:12.6]} 9. O-O {[%clk 0:08:01.2]} 9... Ba6 {[%clk
0:09:00.9]} 10. a4 {[%clk 0:06:54.6]} 10... c5 {[%clk 0:07:27.2]} 11. Bxa6
{[%clk 0:06:41.6]} 11... Nxa6 {[%clk 0:07:27.8]} 12. c3 {[%clk 0:06:42.3]} 12...
Qd6 {[%clk 0:06:33.7]} 13. g3 {[%clk 0:06:31.4]} 13... Rfb8 {[%clk 0:06:24.1]}
14. Rfe1 {[%clk 0:06:09.8]} 14... Nd7 {[%clk 0:06:02.5]} 15. h4 {[%clk
0:05:54.9]} 15... Nc7 {[%clk 0:05:35.3]} 16. h5 {[%clk 0:04:57.8]} 16... h6
{[%clk 0:05:36.1]} 17. Kg2 {[%clk 0:03:18.8]} 17... Rb7 {[%clk 0:04:39.5]} 18.
Rg1 {[%clk 0:02:50]} 18... Rab8 {[%clk 0:04:35.6]} 19. Ne5 {[%clk 0:02:42.3]}
19... cxd4 {[%clk 0:04:34.8]} 20. cxd4 {[%clk 0:02:36.9]} 20... Nxe5 {[%clk
0:03:12.1]} 21. fxe5 {[%clk 0:02:32.7]} 21... Qb4 {[%clk 0:03:11.6]} 22. Qd3
{[%clk 0:02:15]} 22... b5 {[%clk 0:02:34.6]} 23. b3 {[%clk 0:02:15.5]} 23... Qe7
{[%clk 0:02:35]} 24. Rgc1 {[%clk 0:02:00.6]} 24... Na6 {[%clk 0:02:35.8]} 25.
Qc3 {[%clk 0:01:28.7]} 25... Nb4 {[%clk 0:02:28.9]} 26. Qc5 {[%clk 0:01:12.3]}
26... Qg5 {[%clk 0:02:28.7]} 27. Qc3 {[%clk 0:01:04.5]} 27... Qxh5 {[%clk
0:02:27.7]} 28. axb5 {[%clk 0:01:05.4]} 28... Rxb5 {[%clk 0:02:29]} 29. Nf3
{[%clk 0:01:06]} 29... Qg6 {[%clk 0:02:25.7]} 30. Qc8+ {[%clk 0:00:59]} 30...
Rxc8 {[%clk 0:02:21.3]} 31. Rxc8+ {[%clk 0:01:00.9]} 31... Kh7 {[%clk
0:02:22.6]} 0-1

[Event "GrandPrix_29.05"]
[Site "Chess.com"]
[Date "2020.05.29"]
[Round "1"]
[White "am00ss00"]
[Black "Angry_Twin"]
[Result "0-1"]
[WhiteElo "2111"]
[BlackElo "2552"]
[TimeControl "600+2"]
[EndTime "9:20:06 PDT"]
[Termination "Angry_Twin won by resignation"]

1. e4 {[%clk 0:10:01.9]} 1... c5 {[%clk 0:09:56]} 2. Nc3 {[%clk 0:10:02.1]} 2...
Nc6 {[%clk 0:09:45]} 3. g3 {[%clk 0:10:02.5]} 3... g6 {[%clk 0:09:43.2]} 4. Bg2
{[%clk 0:10:03.2]} 4... Bg7 {[%clk 0:09:43.4]} 5. d3 {[%clk 0:10:03.7]} 5... d6
{[%clk 0:09:39]} 6. f4 {[%clk 0:10:03.7]} 6... e6 {[%clk 0:09:22.8]} 7. Nf3
{[%clk 0:10:01.5]} 7... Nge7 {[%clk 0:09:23.7]} 8. O-O {[%clk 0:10:01.8]} 8...
O-O {[%clk 0:09:24.2]} 9. Be3 {[%clk 0:10:02.3]} 9... Rb8 {[%clk 0:09:20.2]} 10.
Qd2 {[%clk 0:10:02.9]} 10... b5 {[%clk 0:09:20.1]} 11. Rae1 {[%clk 0:10:00.7]}
11... b4 {[%clk 0:09:06.6]} 12. Nd1 {[%clk 0:10:00.9]} 12... a5 {[%clk
0:09:07.7]} 13. g4 {[%clk 0:09:48.9]} 13... f5 {[%clk 0:09:07.3]} 14. gxf5
{[%clk 0:09:48.4]} 14... exf5 {[%clk 0:09:04.8]} 15. e5 {[%clk 0:09:37.6]} 15...
h6 {[%clk 0:07:22.4]} 16. Qf2 {[%clk 0:09:01.4]} 16... Re8 {[%clk 0:06:41.7]}
17. exd6 {[%clk 0:08:49.2]} 17... Qxd6 {[%clk 0:06:43.6]} 18. Bxc5 {[%clk
0:08:29.9]} 18... Qxf4 {[%clk 0:06:35.3]} 19. Ne3 {[%clk 0:06:30.2]} 19... Be6
{[%clk 0:06:21.4]} 20. Nc4 {[%clk 0:05:49.2]} 20... Bxc4 {[%clk 0:06:14.2]} 21.
dxc4 {[%clk 0:05:49.3]} 21... Qxc4 {[%clk 0:06:05.5]} 22. Kh1 {[%clk 0:04:56.6]}
22... Kh7 {[%clk 0:05:42.8]} 23. b3 {[%clk 0:04:40.5]} 23... Qf7 {[%clk
0:05:33.8]} 24. Qh4 {[%clk 0:04:31.4]} 24... Bf6 {[%clk 0:05:32.8]} 25. Qf4
{[%clk 0:04:19.7]} 25... Rbc8 {[%clk 0:05:24.7]} 26. Qd6 {[%clk 0:04:11.6]}
26... Bg7 {[%clk 0:05:06.9]} 27. Re2 {[%clk 0:03:51.3]} 27... Red8 {[%clk
0:04:16.3]} 28. Rxe7 {[%clk 0:03:18.9]} 28... Nxe7 {[%clk 0:04:18.2]} 29. Qxe7
{[%clk 0:03:18.4]} 29... Qxe7 {[%clk 0:04:19.5]} 30. Bxe7 {[%clk 0:03:20.3]}
30... Rd7 {[%clk 0:04:21.1]} 31. Bh4 {[%clk 0:03:15.7]} 31... Rxc2 {[%clk
0:04:21]} 32. Re1 {[%clk 0:02:57]} 32... Rxa2 {[%clk 0:04:19.1]} 33. Bf1 {[%clk
0:02:50.6]} 33... g5 {[%clk 0:03:51.9]} 34. Nxg5+ {[%clk 0:02:28.6]} 34... hxg5
{[%clk 0:03:52.7]} 35. Bxg5 {[%clk 0:02:30.5]} 35... Ra1 {[%clk 0:03:52.3]} 36.
Rxa1 {[%clk 0:02:22]} 36... Bxa1 {[%clk 0:03:54.2]} 37. Bc4 {[%clk 0:02:22.4]}
37... Rc7 {[%clk 0:03:30]} 38. Be6 {[%clk 0:02:16.7]} 38... Kg6 {[%clk
0:03:29.5]} 39. Bd8 {[%clk 0:02:10.1]} 39... Rc6 {[%clk 0:03:24.3]} 40. Bd7
{[%clk 0:01:55.9]} 40... Rc3 {[%clk 0:03:14]} 41. Be6 {[%clk 0:01:49]} 41... a4
{[%clk 0:03:13.5]} 42. bxa4 {[%clk 0:01:44.1]} 42... b3 {[%clk 0:03:14.7]} 43.
a5 {[%clk 0:01:09.6]} 43... b2 {[%clk 0:03:13.7]} 44. Ba2 {[%clk 0:01:10.3]}
44... Rc1+ {[%clk 0:03:14.6]} 45. Kg2 {[%clk 0:01:11.7]} 45... b1=Q {[%clk
0:03:16.5]} 46. Bxb1 {[%clk 0:01:13]} 46... Rxb1 {[%clk 0:03:18.4]} 47. a6
{[%clk 0:01:13.9]} 47... Bd4 {[%clk 0:03:18.5]} 0-1

[Event "GrandPrix_29.05"]
[Site "Chess.com"]
[Date "2020.05.29"]
[Round "1"]
[White "SacrificeGod"]
[Black "Vazgen352"]
[Result "0-1"]
[WhiteElo "2319"]
[BlackElo "2360"]
[TimeControl "600+2"]
[EndTime "9:20:10 PDT"]
[Termination "Vazgen352 won by resignation"]

1. e4 {[%clk 0:10:00.5]} 1... e6 {[%clk 0:09:56.5]} 2. d4 {[%clk 0:09:59.8]}
2... d5 {[%clk 0:09:57.4]} 3. Nd2 {[%clk 0:09:59.1]} 3... dxe4 {[%clk
0:09:57.5]} 4. Nxe4 {[%clk 0:09:58.5]} 4... Nd7 {[%clk 0:09:58.7]} 5. Nf3 {[%clk
0:09:37.7]} 5... Ngf6 {[%clk 0:09:58.5]} 6. Nxf6+ {[%clk 0:09:17.9]} 6... Nxf6
{[%clk 0:10:00.4]} 7. Bg5 {[%clk 0:08:38.4]} 7... Be7 {[%clk 0:09:50]} 8. Bd3
{[%clk 0:08:37.1]} 8... h6 {[%clk 0:09:51]} 9. Bh4 {[%clk 0:08:28]} 9... O-O
{[%clk 0:09:50.8]} 10. Qe2 {[%clk 0:08:26.9]} 10... c5 {[%clk 0:09:43.3]} 11.
dxc5 {[%clk 0:08:17.6]} 11... Qa5+ {[%clk 0:09:21.3]} 12. c3 {[%clk 0:08:15.8]}
12... Qxc5 {[%clk 0:09:21.3]} 13. O-O-O {[%clk 0:08:14.8]} 13... Bd7 {[%clk
0:08:29.7]} 14. g4 {[%clk 0:07:37.9]} 14... Bc6 {[%clk 0:08:02.9]} 15. Rhg1
{[%clk 0:07:28.1]} 15... Nd5 {[%clk 0:08:02.8]} 16. Bxe7 {[%clk 0:07:24.4]}
16... Qxe7 {[%clk 0:08:04.7]} 17. Bc2 {[%clk 0:06:44.2]} 17... Rac8 {[%clk
0:06:16.6]} 18. g5 {[%clk 0:06:23.3]} 18... h5 {[%clk 0:05:15.5]} 19. Ne5 {[%clk
0:04:14.5]} 19... g6 {[%clk 0:05:15]} 20. Bxg6 {[%clk 0:04:12.9]} 20... Nf4
{[%clk 0:05:15.6]} 21. Qc2 {[%clk 0:03:20.5]} 21... fxg6 {[%clk 0:05:08]} 22.
Nxg6 {[%clk 0:03:19.7]} 22... Nxg6 {[%clk 0:04:51.3]} 23. Qxg6+ {[%clk
0:03:17.1]} 23... Qg7 {[%clk 0:04:52.8]} 24. Qxe6+ {[%clk 0:02:59.7]} 24... Qf7
{[%clk 0:04:53.4]} 25. Qh6 {[%clk 0:03:00.6]} 25... Be4 {[%clk 0:04:22.5]} 26.
Rge1 {[%clk 0:01:41.3]} 26... Qg6 {[%clk 0:03:34.4]} 27. Qxg6+ {[%clk
0:00:56.1]} 27... Bxg6 {[%clk 0:03:33.7]} 28. Re7 {[%clk 0:00:47.9]} 28... Rce8
{[%clk 0:03:20.7]} 29. Rdd7 {[%clk 0:00:41.7]} 29... Rxe7 {[%clk 0:03:16.6]} 30.
Rxe7 {[%clk 0:00:42.8]} 30... Rxf2 {[%clk 0:03:18.1]} 31. Rxb7 {[%clk 0:00:44]}
31... Rxh2 {[%clk 0:03:16.9]} 32. Rxa7 {[%clk 0:00:41.5]} 32... h4 {[%clk
0:03:18.3]} 33. Ra4 {[%clk 0:00:20.9]} 33... h3 {[%clk 0:03:14.5]} 34. Rh4
{[%clk 0:00:20.9]} 34... Bf5 {[%clk 0:03:15.9]} 35. a4 {[%clk 0:00:21.3]} 35...
Rc2+ {[%clk 0:03:16.3]} 36. Kd1 {[%clk 0:00:22.4]} 36... Rxb2 {[%clk 0:03:17.1]}
37. a5 {[%clk 0:00:22.3]} 37... h2 {[%clk 0:03:18.3]} 0-1

[Event "GrandPrix_29.05"]
[Site "Chess.com"]
[Date "2020.05.29"]
[Round "1"]
[White "Alex_Krayz"]
[Black "mishikomchedlishvili"]
[Result "0-1"]
[WhiteElo "2183"]
[BlackElo "1637"]
[TimeControl "600+2"]
[EndTime "9:20:11 PDT"]
[Termination "mishikomchedlishvili won by resignation"]

1. e4 {[%clk 0:09:51.2]} 1... c5 {[%clk 0:09:57.2]} 2. Nf3 {[%clk 0:09:51.3]}
2... e6 {[%clk 0:09:53]} 3. c3 {[%clk 0:09:51]} 3... Nf6 {[%clk 0:09:50.5]} 4.
e5 {[%clk 0:09:51.1]} 4... Nd5 {[%clk 0:09:50.3]} 5. d4 {[%clk 0:09:51.7]} 5...
cxd4 {[%clk 0:09:48.2]} 6. cxd4 {[%clk 0:09:51.9]} 6... d6 {[%clk 0:09:47.8]} 7.
Bc4 {[%clk 0:09:50.5]} 7... Nc6 {[%clk 0:09:46.2]} 8. O-O {[%clk 0:09:46.6]}
8... Be7 {[%clk 0:09:46.8]} 9. Qe2 {[%clk 0:09:31]} 9... O-O {[%clk 0:09:43.7]}
10. Bd2 {[%clk 0:09:22.2]} 10... Qb6 {[%clk 0:09:06.4]} 11. Nc3 {[%clk 0:07:39]}
11... Nxd4 {[%clk 0:08:38.5]} 12. Nxd4 {[%clk 0:07:36.5]} 12... Qxd4 {[%clk
0:08:39.5]} 13. exd6 {[%clk 0:07:06.6]} 13... Bxd6 {[%clk 0:08:33.5]} 14. Nb5
{[%clk 0:06:00.7]} 14... Qe5 {[%clk 0:08:30.4]} 15. Nxd6 {[%clk 0:05:58.7]}
15... Qxd6 {[%clk 0:08:31.2]} 16. Rad1 {[%clk 0:05:42.7]} 16... Bd7 {[%clk
0:08:23.3]} 17. Bxd5 {[%clk 0:05:25.9]} 17... exd5 {[%clk 0:07:48.6]} 18. Bc3
{[%clk 0:05:23.2]} 18... Rfe8 {[%clk 0:07:22.3]} 19. Qh5 {[%clk 0:05:03.1]}
19... Bc6 {[%clk 0:07:16.8]} 20. Rd4 {[%clk 0:04:50]} 20... Qg6 {[%clk
0:07:10.4]} 21. Qf3 {[%clk 0:04:40.6]} 21... Re4 {[%clk 0:07:07.4]} 22. Rfd1
{[%clk 0:04:32]} 22... Rae8 {[%clk 0:07:06.7]} 23. h3 {[%clk 0:04:02.6]} 23...
h5 {[%clk 0:07:04.3]} 24. Kh2 {[%clk 0:03:37.1]} 24... a6 {[%clk 0:07:02.1]} 25.
a3 {[%clk 0:03:35]} 25... Kh7 {[%clk 0:06:56.8]} 26. Kg1 {[%clk 0:03:28.6]}
26... R8e6 {[%clk 0:06:55.9]} 27. R1d3 {[%clk 0:02:56.9]} 27... Bb5 {[%clk
0:06:46]} 28. Rd2 {[%clk 0:02:18.3]} 28... Bc4 {[%clk 0:06:38.1]} 29. Kh2 {[%clk
0:01:55.2]} 29... h4 {[%clk 0:06:05]} 30. Qd1 {[%clk 0:01:48]} 30... Qg5 {[%clk
0:05:25.7]} 31. Qc2 {[%clk 0:01:23.7]} 31... Qf4+ {[%clk 0:05:00]} 32. g3 {[%clk
0:01:22.8]} 32... hxg3+ {[%clk 0:04:59.7]} 33. fxg3 {[%clk 0:01:22.6]} 33... Qe3
{[%clk 0:04:38.9]} 34. b3 {[%clk 0:01:11.7]} 34... Rg6 {[%clk 0:04:34]} 35. Rg2
{[%clk 0:00:51.2]} 35... Rxd4 {[%clk 0:04:34.9]} 36. Bxd4 {[%clk 0:00:48.7]}
36... Qxd4 {[%clk 0:04:34.2]} 37. bxc4 {[%clk 0:00:49.2]} 37... dxc4 {[%clk
0:04:12.3]} 38. Qf5 {[%clk 0:00:39.2]} 38... Qf6 {[%clk 0:04:10.3]} 39. Qe4
{[%clk 0:00:37.2]} 39... Qc6 {[%clk 0:04:08.6]} 40. Qf5 {[%clk 0:00:34.5]} 40...
Kg8 {[%clk 0:04:03.9]} 41. Rd2 {[%clk 0:00:33.5]} 41... Re6 {[%clk 0:04:04.1]}
42. h4 {[%clk 0:00:27]} 42... c3 {[%clk 0:03:59.2]} 43. Rd8+ {[%clk 0:00:23.7]}
43... Re8 {[%clk 0:04:00.2]} 44. Rxe8+ {[%clk 0:00:20.6]} 44... Qxe8 {[%clk
0:04:01]} 45. Qc5 {[%clk 0:00:20.4]} 45... Qc6 {[%clk 0:03:59.9]} 0-1

[Event "GrandPrix_29.05"]
[Site "Chess.com"]
[Date "2020.05.29"]
[Round "1"]
[White "Andrei_Belozerov"]
[Black "ulkaf961"]
[Result "1-0"]
[WhiteElo "2174"]
[BlackElo "2026"]
[TimeControl "600+2"]
[EndTime "9:20:14 PDT"]
[Termination "Andrei_Belozerov won by resignation"]

1. e4 {[%clk 0:10:00.5]} 1... e6 {[%clk 0:09:22.3]} 2. d4 {[%clk 0:10:00.8]}
2... d5 {[%clk 0:09:22.1]} 3. Nd2 {[%clk 0:09:57.9]} 3... a6 {[%clk 0:09:18.6]}
4. Ngf3 {[%clk 0:09:58.3]} 4... Nf6 {[%clk 0:09:17.7]} 5. Bd3 {[%clk 0:09:55.1]}
5... c5 {[%clk 0:09:16.3]} 6. exd5 {[%clk 0:09:51.8]} 6... exd5 {[%clk
0:09:16.6]} 7. O-O {[%clk 0:09:49.3]} 7... Be7 {[%clk 0:09:16.7]} 8. dxc5 {[%clk
0:09:44.4]} 8... O-O {[%clk 0:09:17.1]} 9. Nb3 {[%clk 0:09:44.5]} 9... Nbd7
{[%clk 0:08:42.1]} 10. Be3 {[%clk 0:09:43.5]} 10... Qc7 {[%clk 0:08:09.9]} 11.
c3 {[%clk 0:09:13.5]} 11... Ne4 {[%clk 0:04:33.2]} 12. Bc2 {[%clk 0:08:17.5]}
12... Ndf6 {[%clk 0:04:09.5]} 13. h3 {[%clk 0:06:48.7]} 13... Bf5 {[%clk
0:03:30.2]} 14. Qd4 {[%clk 0:05:33.1]} 14... Rfe8 {[%clk 0:01:53.2]} 15. Rad1
{[%clk 0:05:21.5]} 15... Rad8 {[%clk 0:01:51.5]} 16. Rfe1 {[%clk 0:05:19.5]}
16... Bg6 {[%clk 0:01:11.6]} 17. Ne5 {[%clk 0:04:25.1]} 17... Bh5 {[%clk
0:00:39.6]} 18. f3 {[%clk 0:04:23.5]} 18... Nxc5 {[%clk 0:00:32]} 19. Nxc5
{[%clk 0:04:20]} 19... Bxc5 {[%clk 0:00:31.5]} 20. Qxc5 {[%clk 0:04:17.9]} 20...
Qxe5 {[%clk 0:00:32.2]} 21. Qd4 {[%clk 0:03:49]} 21... Qxd4 {[%clk 0:00:19.3]}
22. Bxd4 {[%clk 0:03:46.9]} 22... Nd7 {[%clk 0:00:17.3]} 23. Bb3 {[%clk
0:03:38.5]} 23... Bg6 {[%clk 0:00:14.9]} 24. Bxd5 {[%clk 0:03:32.6]} 24... b6
{[%clk 0:00:12.3]} 25. Rxe8+ {[%clk 0:03:21.9]} 25... Rxe8 {[%clk 0:00:13.2]}
26. Bc6 {[%clk 0:03:19.5]} 26... Re7 {[%clk 0:00:14.2]} 27. Bxb6 {[%clk
0:03:07.4]} 27... Nf8 {[%clk 0:00:14.1]} 28. Rd8 {[%clk 0:03:01.8]} 28... Re5
{[%clk 0:00:11.7]} 29. b4 {[%clk 0:02:52.9]} 1-0

[Event "GrandPrix_29.05"]
[Site "Chess.com"]
[Date "2020.05.29"]
[Round "1"]
[White "Batica1984"]
[Black "viktorko131"]
[Result "1-0"]
[WhiteElo "1860"]
[BlackElo "2194"]
[TimeControl "600+2"]
[EndTime "9:20:18 PDT"]
[Termination "Batica1984 won by checkmate"]

1. e4 {[%clk 0:09:57.3]} 1... c5 {[%clk 0:09:59.5]} 2. Nf3 {[%clk 0:09:55]} 2...
Nc6 {[%clk 0:09:59.4]} 3. Nc3 {[%clk 0:09:50.5]} 3... Nf6 {[%clk 0:09:55.1]} 4.
Bb5 {[%clk 0:09:47.6]} 4... Qc7 {[%clk 0:09:44.7]} 5. O-O {[%clk 0:09:33.8]}
5... Nd4 {[%clk 0:07:21.4]} 6. Re1 {[%clk 0:09:26]} 6... Ng4 {[%clk 0:05:54.1]}
7. e5 {[%clk 0:09:18.4]} 7... Nxf3+ {[%clk 0:04:59.6]} 8. Qxf3 {[%clk
0:09:15.2]} 8... Nxe5 {[%clk 0:05:00.9]} 9. Qg3 {[%clk 0:08:00.1]} 9... f6
{[%clk 0:05:01.9]} 10. d3 {[%clk 0:06:24.8]} 10... a6 {[%clk 0:04:50.8]} 11. Ba4
{[%clk 0:06:14.6]} 11... b5 {[%clk 0:04:40.6]} 12. Bb3 {[%clk 0:06:15.2]} 12...
Bb7 {[%clk 0:04:08.9]} 13. f4 {[%clk 0:05:31.1]} 13... Nc6 {[%clk 0:02:59.5]}
14. Be3 {[%clk 0:04:52.5]} 14... Nd4 {[%clk 0:02:43.9]} 15. Bxd4 {[%clk
0:04:37.7]} 15... cxd4 {[%clk 0:02:45]} 16. Ne4 {[%clk 0:04:10.7]} 16... e6
{[%clk 0:02:13.4]} 17. a4 {[%clk 0:04:03.2]} 17... b4 {[%clk 0:01:21.8]} 18.
Rac1 {[%clk 0:03:28.8]} 18... Kf7 {[%clk 0:00:57.8]} 19. Qg4 {[%clk 0:02:59.6]}
19... Bxe4 {[%clk 0:00:19.3]} 20. Rxe4 {[%clk 0:02:51.3]} 20... g6 {[%clk
0:00:13.9]} 21. f5 {[%clk 0:02:46]} 21... gxf5 {[%clk 0:00:09.4]} 22. Qxf5
{[%clk 0:02:45.7]} 22... Qc5 {[%clk 0:00:10.6]} 23. Bxe6+ {[%clk 0:02:35.8]}
23... dxe6 {[%clk 0:00:05.8]} 24. Qxe6+ {[%clk 0:02:36.8]} 24... Kg7 {[%clk
0:00:05.3]} 25. Rg4+ {[%clk 0:02:36.3]} 25... Kh6 {[%clk 0:00:04.8]} 26. Qxf6+
{[%clk 0:02:36.8]} 26... Kh5 {[%clk 0:00:05.2]} 27. Rh4# {[%clk 0:02:37.1]} 1-0

[Event "GrandPrix_29.05"]
[Site "Chess.com"]
[Date "2020.05.29"]
[Round "1"]
[White "sahidi"]
[Black "Semen_Khanin"]
[Result "0-1"]
[WhiteElo "2049"]
[BlackElo "2503"]
[TimeControl "600+2"]
[EndTime "9:20:27 PDT"]
[Termination "Semen_Khanin won on time"]

1. e3 {[%clk 0:08:54.1]} 1... Nf6 {[%clk 0:09:55.6]} 2. Nf3 {[%clk 0:08:36.2]}
2... g6 {[%clk 0:09:56.2]} 3. d4 {[%clk 0:08:19.8]} 3... Bg7 {[%clk 0:09:56.5]}
4. Be2 {[%clk 0:08:02.4]} 4... O-O {[%clk 0:09:56.5]} 5. O-O {[%clk 0:07:50.1]}
5... d6 {[%clk 0:09:57.4]} 6. c3 {[%clk 0:06:16.2]} 6... Nbd7 {[%clk 0:09:37.3]}
7. Nbd2 {[%clk 0:06:00.4]} 7... e5 {[%clk 0:09:35.1]} 8. Qc2 {[%clk 0:05:25.5]}
8... Re8 {[%clk 0:09:33.4]} 9. e4 {[%clk 0:05:09.9]} 9... c6 {[%clk 0:08:05.9]}
10. Rd1 {[%clk 0:04:59.7]} 10... Qc7 {[%clk 0:08:06.7]} 11. dxe5 {[%clk
0:04:50.3]} 11... dxe5 {[%clk 0:07:51.8]} 12. b4 {[%clk 0:04:47.4]} 12... Nf8
{[%clk 0:06:57]} 13. Bb2 {[%clk 0:04:45.1]} 13... Ne6 {[%clk 0:06:47.4]} 14. Nc4
{[%clk 0:04:29]} 14... Nf4 {[%clk 0:06:37.4]} 15. Ne3 {[%clk 0:04:06.2]} 15...
Nxe2+ {[%clk 0:06:31.6]} 16. Qxe2 {[%clk 0:03:55.8]} 16... Nxe4 {[%clk
0:06:32.6]} 17. c4 {[%clk 0:03:44.9]} 17... Be6 {[%clk 0:06:17.8]} 18. Rac1
{[%clk 0:03:38.3]} 18... f5 {[%clk 0:06:13.8]} 19. Nd5 {[%clk 0:03:28.7]} 19...
Qf7 {[%clk 0:06:14.6]} 20. Nxe5 {[%clk 0:03:14.7]} 20... Bxe5 {[%clk 0:06:11.8]}
21. Bxe5 {[%clk 0:03:06.4]} 21... Bxd5 {[%clk 0:06:03.8]} 22. cxd5 {[%clk
0:02:52.3]} 22... Rxe5 {[%clk 0:06:04]} 23. dxc6 {[%clk 0:02:34]} 23... Re7
{[%clk 0:05:06.2]} 24. cxb7 {[%clk 0:02:21.4]} 24... Rxb7 {[%clk 0:05:05.1]} 25.
Qa6 {[%clk 0:01:59.4]} 25... Re8 {[%clk 0:04:46.6]} 26. a3 {[%clk 0:01:48.3]}
26... Rbe7 {[%clk 0:04:43.3]} 27. h3 {[%clk 0:01:32.7]} 27... f4 {[%clk
0:04:32.8]} 28. Rc8 {[%clk 0:01:21.7]} 28... f3 {[%clk 0:04:28.5]} 29. Rxe8+
{[%clk 0:01:07.6]} 29... Rxe8 {[%clk 0:04:28.8]} 30. gxf3 {[%clk 0:00:53.8]}
30... Ng5 {[%clk 0:04:15.6]} 31. Qc6 {[%clk 0:00:41.7]} 31... Nxh3+ {[%clk
0:03:43.6]} 32. Kf1 {[%clk 0:00:27.2]} 32... Nf4 {[%clk 0:03:31.9]} 33. Rd7
{[%clk 0:00:10.3]} 33... Qa2 {[%clk 0:03:08.7]} 0-1